[Event "FIDE WCCC U10 2018"]
[Site "Santiago de Compostela"]
[Date "2018.11.14"]
[Round "10"]
[White "Anand, Batsukh"]
[Black "Kolesov, Gordey"]
[Result "0-1"]
[ECO "C47"]
[WhiteElo "1746"]
[BlackElo "1823"]
[Annotator "NA RC"]
[PlyCount "94"]
[EventDate "2018.11.04"]
[EventType "swiss"]
[EventCountry "ESP"]
[SourceTitle "playchess.com"]
[Source "ChessBase"]
[SourceQuality "1"]
[TimeControl "40/5400+30:1800+30"]

{[%evp 11,87,-6,9,17,42,14,48,23,7,23,7,-16,6,-31,-31,-23,-21,-20,-14,-20,0,-6,8,2,15,0,12,32767,32767,-169,-49,32767,3,32767,0,10,9,0,4,12,16,0,85,91,32767,81,83,0,47,0,32767,18,28,0,0,0,0,0,0,0,0,32767,32767,32767,-162,-396,-487,-504,32767,-1180,-1419,-1708,-5385,32767,32767,-29987,32767,-29988]} 1. e4 {[%emt 0:01:06]} e5 {[%emt 0:00:00]} 2. Nf3 {[%emt 0:01:52]} Nc6 {[%emt 0:00:06]} 3. Nc3 {[%emt 0:01:32]} Nf6 {[%emt 0:00:21]} 4. a3 {[%emt 0:01:27]} d5 {[%emt 0:02:25]} 5. Bb5 {[%emt 0:01:29] C47: Scotch Four Knights and Four Knights with 4 g3} d4 {[%emt 0:03:02]} (5... Nxe4 6. Qe2 Qd6 7. Nxe4 dxe4 8. Qxe4 Bd7 9. d3 O-O-O 10. O-O Re8 11. Qe2 Qg6 12. Be3 Bd6 {0-1 (55) Caruana,F (2816)-Kramnik,V (2792) Paris 2018}) 6. Ne2 {[%emt 0:01:30]} Nxe4 {[%emt 0:07:47]} 7. d3 {[%emt 0:01:29]} Nf6 {[%emt 0:03:02]} 8. Nxe5 {[%emt 0:03:40] LiveBook: 6 Games} Qd5 {[%emt 0:01:04]} 9. Bxc6+ {[%emt 0:04:05]} bxc6 {[%emt 0:00:08]} 10. Nf3 {[%emt 0:01:05]} c5 {[%emt 0:03:21]} 11. Nf4 {[%emt 0:02:21]} Qd6 {[%emt 0:03:31]} 12. Qe2+ $146 {[%emt 0:03:36]} ({Predecessor:} 12. O-O Be7 {0-1 (33) Zadruzny,N (2295)-Collett,P (2225) Sweden 2006}) 12... Be7 13. O-O {[%emt 0:02:25]} O-O {[%emt 0:05:40]} 14. Ne5 {[%emt 0:03:54]} Re8 {[%emt 0:06:40]} 15. Nc4 {[%emt 0:01:15]} Qd8 {[%emt 0:01:30]} 16. Qf3 {[%emt 0:02:25]} Bg4 {[%emt 0:04:15]} 17. Qg3 $1 {[%emt 0:01:26]} Bf8 {[%emt 0:06:24]} 18. f3 {[%emt 0:04:12]} Bf5 {[%emt 0:04:40]} 19. Nh3 {[%emt 0:05:49]} Re2 {[%emt 0:01:19]} 20. Bd2 {[%emt 0:04:51]} (20. Rf2 $1 $11 {and White stays safe.} Re1+ 21. Rf1) 20... h6 {[%emt 0:07:48]} (20... Nh5 $17 21. Qg5 Bxh3 22. gxh3 Qxg5+ 23. Bxg5 Rxc2) 21. Nf4 {[%emt 0:01:58] [#]} Re8 {[%emt 0:01:58]} (21... Rxd2 $1 $17 {[%mdl 512]} 22. Nxd2 Bd6) 22. Rae1 {[%emt 0:01:57]} Bd6 {[%emt 0:07:22]} 23. Rxe8+ {[%emt 0:01:52]} Qxe8 {[%emt 0:00:10]} 24. Nxd6 {[%emt 0:02:49]} cxd6 {[%emt 0:00:01]} 25. Nh3 {[%emt 0:01:21]} Kh7 {[%emt 0:00:57]} 26. Qxd6 {[%emt 0:03:25]} Qe2 {[%emt 0:02:41]} (26... Bxh3 $11 27. gxh3 Rc8) 27. Qf4 {[%emt 0:06:12]} Bxh3 {[%emt 0:02:38]} 28. gxh3 {[%emt 0:00:05]} Qe6 {[%emt 0:02:14]} 29. Kg2 {[%emt 0:01:42]} ({White should try} 29. h4 $14) 29... Kg8 {[%emt 0:02:06]} 30. b3 {[%emt 0:01:11]} Qa6 {[%emt 0:01:16]} 31. a4 {[%emt 0:02:10]} Re8 {[%emt 0:01:48]} 32. Qf5 {[%emt 0:02:18]} Qd6 {[%emt 0:03:27]} 33. Re1 {[%emt 0:01:38]} Rxe1 {[%emt 0:01:32]} 34. Bxe1 {[%emt 0:04:06]} g6 {[%emt 0:05:00]} 35. Qc8+ {[%emt 0:01:21]} Kg7 {[%emt 0:00:35]} 36. Bg3 {[%emt 0:13:15]} Qe7 {[%emt 0:00:12]} 37. Bf2 {[%emt 0:01:05]} Nd5 {[%emt 0:02:13]} 38. Qb8 $2 {[%emt 0:05:04]} (38. Qg4) 38... Qe2 {[%emt 0:01:54]} 39. Kg3 {[%emt 0:00:58]} h5 {[%emt 0:01:37]} 40. Qd8 $2 {[%emt 0:00:00]} (40. h4) 40... Ne3 {[%emt 0:00:00]} 41. Bxe3 {[%emt 0:12:26]} dxe3 {[%emt 0:03:13]} 42. Qe7 {[%emt 0:04:17]} Qf2+ {[%emt 0:00:32]} 43. Kf4 {[%emt 0:00:12]} e2 {[%emt 0:01:13]} 44. Qe5+ {[%emt 0:01:30]} Kh7 {[%emt 0:00:39]} 45. Qe7 {[%emt 0:00:52]} Qxh2+ {[%emt 0:00:55]} 46. Kg5 {[%emt 0:01:22]} Qg3+ {[%emt 0:00:08]} 47. Kf6 {[%emt 0:00:06]} Qh4+ {[%emt 0:00:05]} 0-1

[Event "FIDE WCCC U10 2018"]
[Site "Santiago de Compostela"]
[Date "2018.11.14"]
[Round "10"]
[White "Pham, Tran Gia Phuc"]
[Black "Habans Aguerrea, Javier"]
[Result "1-0"]
[ECO "A50"]
[WhiteElo "1736"]
[BlackElo "1892"]
[Annotator "NA RC"]
[PlyCount "91"]
[EventDate "2018.11.04"]
[EventType "swiss"]
[EventCountry "ESP"]
[SourceTitle "playchess.com"]
[Source "ChessBase"]
[SourceQuality "1"]
[TimeControl "40/5400+30:1800+30"]

{[%evp 15,91,33,37,32767,46,2,35,27,36,18,37,9,20,10,33,-18,12,0,0,0,44,32767,34,0,35,0,39,22,89,75,78,68,127,160,157,59,32767,104,89,32767,32767,32767,32767,32767,32767,32767,32767,32767,32767,201,229,90,315,285,336,32767,410,526,32767,32767,697,32767,32767,32767,32767,1602,1166,32767,32767,32767,32767,2343,1357,2297,2550,29971,29992,29993]} 1. d4 {[%emt 0:00:00]} Nf6 {[%emt 0:00:00]} 2. c4 {[%emt 0:00:00]} Nc6 {[%emt 0:00:00]} 3. d5 {[%emt 0:02:25]} Ne5 {[%emt 0:00:00]} 4. e3 {[%emt 0:00:23] A50: Queen's Fianchetto Defence (1 d4 Nf6 2 c4 b6)} Ng6 {[%emt 0:02:40]} (4... e6 5. Nc3 Bb4 6. Bd2 O-O 7. a3 Bxc3 8. Bxc3 d6 9. f3 exd5 10. cxd5 Re8 11. Qd2 Bd7 {0-1 (34) Vasilevich,T (2372)-Kosteniuk,A (2537) Sochi 2016}) 5. Nc3 {[%emt 0:00:40]} e5 {[%emt 0:00:11]} 6. Nf3 {[%emt 0:01:09]} d6 {[%emt 0:00:21]} 7. Bd3 {[%emt 0:01:13]} Be7 {[%emt 0:00:11]} 8. h3 {[%emt 0:05:15]} O-O {[%emt 0:01:17]} 9. Qc2 {[%emt 0:00:37]} Nh5 $146 {[%emt 0:02:18]} ({Predecessor:} 9... Nd7 10. Bf5 a5 11. b3 Nc5 12. g4 Bf6 13. Ne4 b6 {0-1 (39) Aubert,C (1999)-Areklett,I (2098) Oslo 2014}) 10. Nh2 {[%emt 0:04:55]} Qe8 {[%emt 0:03:50]} 11. Be2 {[%emt 0:05:19]} Nf6 {[%emt 0:00:13]} 12. Bd2 {[%emt 0:01:05]} Nd7 {[%emt 0:00:47]} 13. O-O-O {[%emt 0:04:51]} f5 {[%emt 0:00:57]} 14. f4 {[%emt 0:02:55]} Bf6 {[%emt 0:03:26]} 15. Bh5 {[%emt 0:02:10]} e4 {[%emt 0:04:14]} 16. g4 {[%emt 0:01:35]} Nc5 {[%emt 0:01:55]} 17. Kb1 {[%emt 0:00:14]} a6 {[%emt 0:01:44]} 18. Nf1 {[%emt 0:01:41]} Bh4 $1 {[%emt 0:04:35]} 19. Be1 {[%emt 0:06:31]} Bxe1 {[%emt 0:00:35]} 20. Rxe1 {[%emt 0:00:09]} b5 {[%emt 0:01:12]} (20... Nd3 $5 {[%cal Rd3e1]} 21. Rd1 Qe7 $14) 21. Nd2 {[%emt 0:03:28]} b4 {[%emt 0:01:54]} (21... bxc4 $11 {keeps the balance.} 22. Reg1 Qe7) 22. Ne2 {[%emt 0:00:19]} a5 {[%emt 0:00:56]} 23. Nd4 {[%emt 0:00:15]} Bd7 {[%emt 0:01:36]} (23... Qe7 $14) 24. gxf5 {[%emt 0:00:12]} ({Don't do} 24. Nxf5 $6 Bxf5 25. gxf5 Rxf5 $14) 24... Bxf5 {[%emt 0:00:03]} 25. Nf1 {[%emt 0:01:43]} (25. Reg1 $18) 25... Bd7 {[%emt 0:02:43]} 26. Ng3 {[%emt 0:00:57]} Qe7 {[%emt 0:00:23]} 27. Bg4 {[%emt 0:07:39]} Rfe8 {[%emt 0:03:39]} 28. Bxd7 {[%emt 0:01:21]} Qxd7 {[%emt 0:00:02]} 29. h4 {[%emt 0:00:23]} a4 {[%emt 0:00:33]} 30. h5 {[%emt 0:00:20]} b3 {[%emt 0:04:24]} 31. Qg2 {[%emt 0:00:19]} bxa2+ {[%emt 0:00:17]} 32. Ka1 {[%emt 0:00:41]} ({Less strong is} 32. Kxa2 Ne7 $14) 32... Ne7 {[%emt 0:03:02]} 33. Nxe4 {[%emt 0:01:03]} (33. Reg1 $18 {has better winning chances.}) 33... Nxe4 $2 {[%emt 0:01:27]} (33... Nxd5 $16 {might work better.} 34. Nxc5 dxc5) 34. Qxe4 {[%emt 0:02:13]} a3 {[%emt 0:01:28]} 35. b3 {[%emt 0:00:28]} Nc8 {[%emt 0:05:17]} 36. Ne6 {[%emt 0:00:29]} c5 {[%emt 0:02:55]} 37. Rhg1 {[%emt 0:01:02]} Qe7 {[%emt 0:04:40]} (37... Qf7 $142 38. Rg2 (38. Kxa2 Ra7 $18) 38... Qf6+ 39. Kxa2 Ra7) 38. Qf5 {[%emt 0:00:16]} g6 {[%emt 0:02:10]} 39. hxg6 {[%emt 0:00:23]} h6 {[%emt 0:00:15]} 40. Rh1 {[%emt 0:00:00]} Rf8 {[%emt 0:00:00]} 41. Qxf8+ {[%emt 0:01:17]} Qxf8 {[%emt 0:00:19]} 42. Nxf8 {[%emt 0:00:02]} Kxf8 {[%emt 0:00:01]} 43. Rxh6 {[%emt 0:00:32]} Kg7 {[%emt 0:00:01]} 44. Reh1 {[%emt 0:00:01]} Nb6 {[%emt 0:00:49]} 45. e4 {[%emt 0:00:09]} Re8 {[%emt 0:00:06]} 46. Rh7+ {[%emt 0:00:07]} 1-0

[Event "FIDE WCCC U10 2018"]
[Site "Santiago de Compostela"]
[Date "2018.11.14"]
[Round "10"]
[White "von Mettenheim, Johannes"]
[Black "Kuhn, Clement"]
[Result "1-0"]
[ECO "E35"]
[WhiteElo "1718"]
[BlackElo "2087"]
[Annotator "NA RC"]
[PlyCount "116"]
[EventDate "2018.11.04"]
[EventType "swiss"]
[EventCountry "ESP"]
[SourceTitle "playchess.com"]
[Source "ChessBase"]
[SourceQuality "1"]
[TimeControl "40/5400+30:1800+30"]

{[%evp 21,116,-19,-17,-22,-19,-54,-40,-59,112,112,326,344,691,566,551,550,32767,32767,32767,686,709,664,707,785,866,701,742,681,32767,32767,1093,1346,32767,32767,32767,32767,32767,651,618,32767,32767,606,664,614,673,32767,545,32767,745,470,508,540,1648,32767,578,32767,32767,32767,32767,32767,32767,462,671,32767,731,688,620,12847,32767,32767,32767,32767,32767,29978,29974,29968,12845,12846,6299,29980,32767,32767,32767,32767,32767,32767,29984,29985,29985,32767,29986,32767,32767,29987,29987,29987,29987]} 1. d4 {[%emt 0:00:00]} Nf6 {[%emt 0:00:00]} 2. c4 {[%emt 0:00:00]} e6 {[%emt 0:00:00]} 3. Nc3 {[%emt 0:00:00]} Bb4 {[%emt 0:00:00]} 4. Qc2 {[%emt 0:00:00]} d5 {[%emt 0:00:08]} 5. cxd5 {[%emt 0:00:29]} exd5 {[%emt 0:00:08]} 6. Nf3 {[%emt 0:00:06]} O-O {[%emt 0:00:55]} 7. Bg5 {[%emt 0:00:05] E32: Nimzo-Indian: Classical (4 Qc2): 4...0-0} h6 {[%emt 0:00:19]} 8. Bh4 {[%emt 0:00:10]} Nc6 {[%emt 0:00:38]} (8... c5 9. e3 cxd4 10. Nxd4 Nc6 11. Nxc6 bxc6 12. a3 Bxc3+ 13. Qxc3 d4 14. Qxd4 Qxd4 15. exd4 {½-½ (28) Laznicka,V (2662)-Gelfand,B (2703) Novy Bor 2018}) 9. e3 {[%emt 0:00:18]} Re8 {[%emt 0:01:28]} 10. Bd3 {[%emt 0:02:12]} Bg4 {[%emt 0:05:36]} 11. O-O-O {[%emt 0:03:20]} ({Lieber} 11. O-O $14) 11... Bxc3 $146 {[%emt 0:05:09]} ({Predecessor:} 11... Bxf3 12. gxf3 Bxc3 13. Qxc3 Qe7 14. a3 Qe6 15. Rhg1 Rad8 {1-0 (50) Bennett,G (1483)-Johnson,B (1436) IECC email 1998}) 12. Qxc3 {[%emt 0:00:07]} Qd6 {[%emt 0:03:07]} 13. h3 {[%emt 0:07:16]} Nb4 {[%emt 0:02:25]} 14. Kb1 {[%emt 0:02:04]} Nxd3 $2 {[%emt 0:05:25]} (14... Bh5 $15 {keeps the upper hand.} 15. g4 Nxd3 16. gxh5 Nb4) 15. hxg4 {[%emt 0:00:37]} Nb4 $2 {[%emt 0:00:53]} (15... Nxf2 $16 {is a better defense.} 16. Bxf2 Nxg4) 16. Bxf6 $1 {[%emt 0:00:10]} gxf6 $2 {[%emt 0:01:58]} (16... a5 17. a3 Qxf6 18. axb4 axb4) 17. Rxh6 {[%emt 0:00:20]} Qe7 {[%emt 0:02:31]} 18. a3 {[%emt 0:02:00]} Qe4+ {[%emt 0:11:20]} 19. Ka1 {[%emt 0:00:06]} Na6 {[%emt 0:00:29]} 20. Rxf6 {[%emt 0:02:21]} Qxg4 {[%emt 0:01:57]} 21. Qb3 {[%emt 0:05:20]} Re6 {[%emt 0:07:49]} 22. Rf4 {[%emt 0:01:34]} Qh5 {[%emt 0:02:33]} 23. g4 {[%emt 0:00:56]} Qg6 {[%emt 0:01:09]} 24. Rh1 {[%emt 0:02:08]} Rd8 {[%emt 0:06:01]} 25. Ne5 {[%emt 0:00:35]} Nc5 {[%emt 0:02:56] [#]} 26. Rh8+ $1 {[%emt 0:01:07]} Kg7 {[%emt 0:01:31]} 27. Qd1 {[%emt 0:00:23]} Rxe5 {[%emt 0:02:12]} 28. Rxd8 {[%emt 0:00:10]} Ne6 {[%emt 0:00:25]} 29. dxe5 {[%emt 0:00:32]} Nxd8 {[%emt 0:00:07]} 30. Qxd5 {[%emt 0:01:15]} Ne6 {[%emt 0:00:29]} 31. Rb4 {[%emt 0:04:13]} a5 {[%emt 0:05:56]} 32. Rc4 {[%emt 0:09:13]} b6 {[%emt 0:00:41]} 33. Qe4 {[%emt 0:03:13]} Qh6 {[%emt 0:02:09]} 34. g5 {[%emt 0:03:29]} Qh3 {[%emt 0:01:21]} 35. Qg4 {[%emt 0:01:06]} Qf1+ {[%emt 0:00:51]} 36. Ka2 {[%emt 0:00:10]} Nc5 {[%emt 0:01:18]} 37. Rc2 {[%emt 0:12:10]} a4 {[%emt 0:03:42]} 38. Qd4 {[%emt 0:01:48]} Nb3 {[%emt 0:00:59]} 39. Qxa4 Nc1+ {[%emt 0:00:12]} 40. Rxc1 {[%emt 0:00:00]} Qxc1 {[%emt 0:00:00]} 41. Qb3 {[%emt 0:02:52]} Qf1 {[%emt 0:08:22]} (41... Qd2 $142 42. f4 Qd7) 42. e6 {[%emt 0:01:32]} fxe6 {[%emt 0:00:54]} 43. Qxe6 {[%emt 0:00:10]} Qxf2 {[%emt 0:13:35] [#]} 44. Qf6+ $1 {[%emt 0:00:39]} Qxf6 {[%emt 0:00:10]} 45. gxf6+ {[%emt 0:00:05]} Kxf6 {[%emt 0:00:10]} 46. Kb3 {[%emt 0:00:09]} Ke5 {[%emt 0:00:11]} 47. Kc4 {[%emt 0:00:13]} c6 {[%emt 0:05:41]} 48. Kd3 {[%emt 0:00:10]} Kd5 {[%emt 0:00:20]} 49. e4+ {[%emt 0:00:37]} Ke5 {[%emt 0:00:26]} 50. b4 {[%emt 0:00:56]} b5 {[%emt 0:00:51]} 51. Ke3 {[%emt 0:00:09]} Ke6 {[%emt 0:00:18]} 52. Kd4 {[%emt 0:00:04]} Kd6 {[%emt 0:00:32]} 53. e5+ {[%emt 0:00:07]} Kd7 {[%emt 0:00:07]} 54. Kc5 {[%emt 0:00:06]} Ke6 {[%emt 0:02:13]} 55. Kxc6 {[%emt 0:00:18]} Kxe5 {[%emt 0:00:06]} 56. Kxb5 {[%emt 0:00:04]} Kd6 {[%emt 0:00:05]} 57. Kb6 {[%emt 0:00:36]} Kd7 {[%emt 0:00:03]} 58. Kb7 {[%emt 0:00:06]} Kd6 {[%emt 0:00:04]} 1-0

[Event "FIDE WCCC U10 2018"]
[Site "Santiago de Compostela"]
[Date "2018.11.14"]
[Round "10"]
[White "Deuer, Marius"]
[Black "Royal, Shreyas"]
[Result "1-0"]
[ECO "E10"]
[WhiteElo "1695"]
[BlackElo "2048"]
[Annotator "NA RC"]
[PlyCount "99"]
[EventDate "2018.11.04"]
[EventType "swiss"]
[EventCountry "ESP"]
[SourceTitle "playchess.com"]
[Source "ChessBase"]
[SourceQuality "1"]
[TimeControl "40/5400+30:1800+30"]

{[%evp 15,97,13,31,24,42,45,45,21,20,32,27,24,31,25,27,25,35,6,43,3,0,0,0,0,47,0,32767,32767,4,0,32767,0,8,-26,-7,-38,-48,-31,-11,0,32767,0,10,12,18,0,32767,14,15,32767,32767,7,9,3,32767,38,66,75,209,104,32767,32767,32767,96,122,128,164,67,78,86,55,5,75,81,142,0,24,0,670,32767,32767,32767,32767,1127]} 1. c4 {[%emt 0:00:00]} e6 {[%emt 0:00:33]} 2. d4 {[%emt 0:00:00]} Nf6 {[%emt 0:00:53]} 3. Nf3 {[%emt 0:01:03]} d5 {[%emt 0:01:08]} 4. Qc2 {[%emt 0:01:07]} c6 {[%emt 0:00:37]} 5. Bg5 {[%emt 0:00:21]} Nbd7 {[%emt 0:01:42]} 6. cxd5 {[%emt 0:00:55]} exd5 {[%emt 0:00:59]} 7. e3 {[%emt 0:02:24]} Be7 {[%emt 0:03:35]} 8. Nc3 {[%emt 0:00:50]} O-O {[%emt 0:02:37]} 9. Bd3 {[%emt 0:00:09]} Re8 {[%emt 0:01:02]} 10. O-O {[%emt 0:02:04]} h6 {[%emt 0:01:23]} 11. Bh4 {[%emt 0:06:08]} Ne4 {[%emt 0:01:04]} 12. Bxe4 {[%emt 0:05:22]} Bxh4 {[%emt 0:01:46]} 13. Bh7+ {[%emt 0:00:08]} Kh8 {[%emt 0:01:26]} 14. Nxh4 {[%emt 0:00:20] D36: Damengambit (Abtauschvariante)} Qxh4 {[%emt 0:00:39]} 15. Bd3 {[%emt 0:00:13]} Nf6 {[%emt 0:03:11] LiveBook: 3 Games} 16. Bf5 $146 {[%emt 0:06:58]} ({Vorgänger:} 16. b4 Bd7 17. a4 Qg5 18. Ne2 Rac8 19. Rfc1 g6 20. Qd2 Bf5 21. b5 Bxd3 22. Qxd3 {½-½ (31) Grill,H (2474)-Marti Pericot,J (2497) ICCF email 2013}) 16... Ne4 {[%emt 0:02:28]} 17. Bxc8 {[%emt 0:00:48]} (17. Bxe4 $5 dxe4 18. Rac1 $14) 17... Raxc8 {[%emt 0:03:07]} 18. Nxe4 {[%emt 0:04:39]} Rxe4 {[%emt 0:02:51]} 19. b4 {[%emt 0:07:23]} Rg4 {[%emt 0:09:37]} 20. b5 {[%emt 0:11:56]} Rg5 {[%emt 0:00:55]} 21. f4 {[%emt 0:09:49]} Rg4 {[%emt 0:09:58]} 22. Rf3 {[%emt 0:12:44]} Rg6 {[%emt 0:02:47]} 23. Qf5 {[%emt 0:03:42]} Rc7 {[%emt 0:03:28]} 24. Rc1 {[%emt 0:00:40]} Qe7 {[%emt 0:01:09]} 25. Qc2 {[%emt 0:01:29]} Re6 {[%emt 0:02:41]} 26. Qc3 {[%emt 0:00:35]} Rc8 {[%emt 0:01:09]} 27. Qb3 {[%emt 0:03:35]} Re8 {[%emt 0:00:40]} 28. bxc6 {[%emt 0:01:53]} bxc6 {[%emt 0:00:24]} 29. Rc3 {[%emt 0:00:07]} Qh4 {[%emt 0:02:51]} 30. g3 {[%emt 0:01:24]} Qg4 {[%emt 0:03:45]} 31. Kg2 {[%emt 0:00:19]} Qf5 {[%emt 0:02:49]} 32. Rf2 {[%emt 0:02:11]} h5 {[%emt 0:00:54]} 33. Qc2 {[%emt 0:01:49]} Qf6 {[%emt 0:02:16]} 34. Rf3 {[%emt 0:01:26]} Qh6 {[%emt 0:01:44]} 35. Qf5 {[%emt 0:01:42]} Rf6 {[%emt 0:00:44]} 36. Qd7 {[%emt 0:02:55]} Ree6 {[%emt 0:01:19]} (36... Ra8 $14) 37. Qxa7 {[%emt 0:01:02]} Qg6 {[%emt 0:00:11]} 38. Qb8+ {[%emt 0:00:23]} Kh7 {[%emt 0:00:05]} 39. Qb2 {[%emt 0:00:18]} h4 {[%emt 0:01:35]} 40. Qc2 {[%emt 0:00:00]} Re4 {[%emt 0:00:00]} 41. Rf1 {[%emt 0:01:13]} ({Better is} 41. a4 $18) 41... Qg4 {[%emt 0:05:19]} 42. Qd1 {[%emt 0:03:52]} Qe6 {[%emt 0:02:19]} 43. Qf3 {[%emt 0:05:36]} Rh6 {[%emt 0:03:19] [#]} 44. g4 $1 {[%emt 0:03:57]} c5 {[%emt 0:06:08]} 45. g5 ({Of course not} 45. Rxc5 Rxe3 46. f5 (46. Qxd5 h3+ 47. Kg1 Qxg4+ 48. Kh1 Re2 $15) 46... Qe8 $11) (45. dxc5 $16 Qa6 46. Rf2) 45... cxd4 {[%emt 0:00:51]} 46. exd4 {[%emt 0:08:28]} Rg6 $2 {[%emt 0:02:48]} (46... h3+ $11 47. Kg3 Re2) 47. Qh5+ {[%emt 0:03:05]} Kg8 {[%emt 0:00:07]} 48. f5 {[%emt 0:00:14]} Re2+ {[%emt 0:01:19]} 49. Kg1 $18 {[%emt 0:01:07]} Qb6 {[%emt 0:00:39]} 50. Rc8+ 1-0

[Event "FIDE WCCC U10 2018"]
[Site "Santiago de Compostela"]
[Date "2018.11.14"]
[Round "10"]
[White "Cacheiro Blanco, Diego"]
[Black "Salinas Tomas, Daniel"]
[Result "1-0"]
[ECO "E20"]
[WhiteElo "1453"]
[BlackElo "1772"]
[Annotator "NA RC"]
[PlyCount "125"]
[EventDate "2018.11.04"]
[EventType "swiss"]
[EventCountry "ESP"]
[SourceTitle "playchess.com"]
[Source "ChessBase"]
[SourceQuality "1"]
[TimeControl "40/5400+30:1800+30"]

1. d4 {[%emt 0:00:00]} Nf6 {[%emt 0:00:05]} 2. c4 {[%emt 0:00:00]} e6 {[%emt 0:00:09]} 3. Nc3 {[%emt 0:00:00]} Bb4 {[%emt 0:00:18]} 4. f3 {[%emt 0:00:03]} c5 {[%emt 0:02:54]} 5. d5 {[%emt 0:01:01]} exd5 {[%emt 0:01:12]} 6. cxd5 {[%emt 0:00:31]} O-O {[%emt 0:00:43]} 7. e4 {[%emt 0:02:18]} d6 {[%emt 0:00:20]} 8. Bd3 {[%emt 0:02:21]} Re8 {[%emt 0:01:04]} 9. Nge2 {[%emt 0:01:16]} Qb6 {[%emt 0:03:59]} 10. Rb1 {[%emt 0:07:18]} Qd8 {[%emt 0:07:16]} 11. Bg5 {[%emt 0:02:29]} Nbd7 {[%emt 0:04:50]} 12. O-O {[%emt 0:03:48]} h6 {[%emt 0:00:45]} 13. Bf4 {[%emt 0:04:12]} Nf8 {[%emt 0:02:08]} 14. Nb5 {[%emt 0:04:08]} Nh5 {[%emt 0:11:12]} 15. Bxd6 {[%emt 0:10:42]} a6 {[%emt 0:06:00]} 16. Bxf8 {[%emt 0:00:36]} axb5 {[%emt 0:02:45]} 17. a3 {[%emt 0:00:21]} Bxa3 {[%emt 0:08:37]} 18. bxa3 {[%emt 0:00:16]} Rxf8 {[%emt 0:00:09]} 19. Bxb5 {[%emt 0:09:29]} Rxa3 {[%emt 0:07:47]} 20. Qc1 {[%emt 0:01:34]} Ra2 {[%emt 0:02:39]} 21. Qxc5 {[%emt 0:01:59]} Qg5 {[%emt 0:03:40]} 22. Qc1 {[%emt 0:03:30]} Qg6 {[%emt 0:00:44]} 23. Bc4 {[%emt 0:02:04]} Bh3 {[%emt 0:03:21]} 24. Rf2 {[%emt 0:02:31]} Ra4 {[%emt 0:00:24]} 25. Bb3 {[%emt 0:02:16]} Ra6 {[%emt 0:05:32]} 26. Nf4 {[%emt 0:02:21]} Nxf4 {[%emt 0:00:48]} 27. Qxf4 {[%emt 0:00:11]} Rc8 {[%emt 0:05:39]} 28. Qg3 {[%emt 0:03:56]} Qxg3 {[%emt 0:02:05]} 29. hxg3 {[%emt 0:00:18]} Bd7 {[%emt 0:00:12]} 30. Rc2 {[%emt 0:01:10]} Raa8 {[%emt 0:05:09]} 31. Rxc8+ {[%emt 0:02:29]} Bxc8 {[%emt 0:00:39]} 32. d6 {[%emt 0:02:39]} Bd7 {[%emt 0:00:45]} 33. Bd5 {[%emt 0:02:23]} Bc6 {[%emt 0:00:09]} 34. Bxc6 {[%emt 0:02:36]} bxc6 {[%emt 0:00:03]} 35. Rb6 {[%emt 0:00:41]} Rc8 {[%emt 0:00:15]} 36. Kf2 {[%emt 0:01:21]} f6 {[%emt 0:01:27]} 37. Ke3 {[%emt 0:01:34]} c5 {[%emt 0:02:37]} 38. Kd3 {[%emt 0:03:33]} Kf7 {[%emt 0:00:23]} 39. Rb7+ {[%emt 0:01:33]} Ke6 {[%emt 0:05:09]} 40. Rxg7 {[%emt 0:00:00]} Kxd6 {[%emt 0:00:00]} 41. Rg6 {[%emt 0:05:52]} Ra8 {[%emt 0:04:46]} 42. Rxf6+ {[%emt 0:00:39]} Kc7 {[%emt 0:00:48]} 43. Kc4 {[%emt 0:00:41]} Ra2 {[%emt 0:00:14]} 44. Kxc5 {[%emt 0:01:13]} Rxg2 {[%emt 0:00:02]} 45. Rxh6 {[%emt 0:01:43]} Rxg3 {[%emt 0:00:11]} 46. f4 {[%emt 0:00:48]} Rg4 {[%emt 0:00:18]} 47. Rf6 {[%emt 0:00:54]} Kd7 {[%emt 0:00:02]} 48. e5 {[%emt 0:00:33]} Ke7 {[%emt 0:00:12]} 49. f5 {[%emt 0:00:40]} Rg1 {[%emt 0:00:08]} 50. Re6+ {[%emt 0:01:22]} Kf7 {[%emt 0:00:01]} 51. Kd6 {[%emt 0:00:51]} Rf1 {[%emt 0:00:29]} 52. Re7+ {[%emt 0:00:35]} Kf8 {[%emt 0:00:08]} 53. f6 {[%emt 0:00:21]} Ra1 {[%emt 0:00:11]} 54. Rc7 {[%emt 0:00:52]} Ra6+ {[%emt 0:00:26]} 55. Rc6 {[%emt 0:00:16]} Ra1 {[%emt 0:00:11]} 56. Ke6 {[%emt 0:00:21]} Ra8 {[%emt 0:00:06]} 57. f7 {[%emt 0:00:51]} Rb8 {[%emt 0:00:25]} 58. Kf6 {[%emt 0:01:32]} Rb6 {[%emt 0:00:11]} 59. Re6 {[%emt 0:00:19]} Rb8 {[%emt 0:00:49]} 60. Re8+ {[%emt 0:00:30]} Rxe8 {[%emt 0:00:07]} 61. fxe8=Q+ {[%emt 0:01:14]} Kxe8 {[%emt 0:00:05]} 62. Ke6 {[%emt 0:00:17]} Kf8 {[%emt 0:00:26]} 63. Kd7 {[%emt 0:00:13]} 1-0